bitfinex-derivatives/quotes_ETHF0:USTF0_20241007
["timestamp","ask_amount","ask_price","bid_price","bid_amount"]
[1728318944513,0.40449,2472.7,2472.6,0.40448]
[1728318944719,0.40449,2472.6,2472.5,1.03749]
[1728318945109,0.40449,2472.6,2472.5,5.08229]
[1728318945617,1.02409,2472.7,2472.6,0.40449]
[1728318946418,0.6196,2472.7,2472.6,0.40449]
[1728318946716,1.21392,2473.4,2472.6,13.204]
[1728318947020,1.21392,2473.4,2472.5,0.633]
[1728318947021,0.40441,2473.2,2473.1,0.40439]
[1728318947323,1.65482,2473.4,2473.3,0.40437]
[1728318947324,0.40437,2473.4,2473.3,0.40437]
[1728318949418,0.40437,2473.3,2473.2,1.03988]
[1728318949622,1.06007,2473.3,2473.2,0.40438]
[1728318950623,0.6557,2473.3,2473.2,0.40438]
[1728318952617,1.06007,2473.3,2473.2,0.40438]
[1728318954126,4.6989,2473.3,2472.7,3.2078]
[1728318954426,0.40446,2472.9,2472.8,0.40444]
[1728318955214,0.40447,2472.7,2472.6,5.24448]
[1728318955432,0.40447,2472.7,2472.6,0.40448]
[1728318955730,0.40447,2472.7,2472.5,0.40449]
[1728318955731,0.4045,2472.6,2472.5,0.40449]
[1728318955922,1.0457,2472.6,2472.5,0.40449]
[1728318956323,0.6412,2472.6,2472.5,0.40449]
[1728318957326,1.04569,2472.6,2472.5,0.40449]
[1728318957725,0.6412,2472.6,2472.5,0.40449]
[1728318958027,1.04569,2472.6,2472.5,0.40449]
[1728318959325,0.6412,2472.6,2472.5,0.40449]
[1728318959925,1.04569,2472.6,2472.5,0.40449]
[1728318960128,1.04569,2472.6,2472.5,4.44929]
[1728318960727,0.40449,2472.6,2472.5,4.44929]
[1728318961029,0.40443,2473.1,2473.0,0.40441]
[1728318961243,0.40443,2473.1,2472.7,7.37897]
[1728318961530,0.40445,2473.0,2472.9,0.40443]
[1728318962424,0.4044,2473.2,2473.1,0.40439]
[1728318963326,0.40437,2473.4,2473.3,0.40436]
[1728318963724,1.01077,2473.8,2473.1,3.16]
[1728318964021,0.40435,2473.5,2473.4,0.40435]
[1728318964219,1.01082,2473.6,2473.1,3.16]
[1728318964425,0.40437,2473.4,2473.3,0.40436]
[1728318965028,4.21862,2473.6,2473.1,3.16]
[1728318965326,0.40435,2473.5,2473.4,0.40434]
[1728318965521,1.01078,2473.7,2473.6,0.40432]
[1728318965522,0.40433,2473.7,2473.6,0.40432]
[1728318965829,3.2078,2473.9,2473.3,4.17093]
[1728318966029,0.40432,2473.7,2473.6,0.40431]
[1728318969130,0.4043,2473.8,2473.7,0.4043]
[1728318969529,4.21839,2474.2,2473.6,3.16]
[1728318969734,4.21839,2474.2,2473.7,1.01077]
[1728318969932,0.40426,2474.1,2474.0,0.40425]
[1728318970632,1.01059,2474.2,2473.7,1.01077]
[1728318970826,0.40426,2474.0,2473.9,0.40427]
[1728318971134,0.40427,2474.0,2473.9,0.40427]
[1728318971435,4.43329051,2474.5,2473.8,3.16]
[1728318971631,3.2078,2474.5,2473.8,3.16]
[1728318971934,3.2078,2474.5,2474.0,0.40425]
[1728318971935,0.40426,2474.1,2474.0,0.40425]
[1728318972137,0.40423,2474.2,2474.1,0.40423]
[1728318972439,0.40422,2474.3,2474.2,0.40422]
[1728318972932,0.4042,2474.4,2474.3,0.40421]
[1728318973233,0.4042,2474.4,2474.0,3.16]
[1728318973234,3.61199,2474.5,2474.4,0.40419]
[1728318973634,3.97926651,2474.5,2474.4,0.40419]
[1728318973935,3.97926651,2474.5,2474.1,1.01062]
[1728318973936,3.2078,2474.5,2474.2,3.16]
[1728318974145,3.2078,2474.5,2474.4,0.40419]
[1728318974335,3.61198,2474.5,2474.1,1.01062]
[1728318974545,0.40419,2474.4,2474.3,0.4042]
[1728318974738,3.2078,2474.5,2474.0,4.17064]
[1728318974939,3.61199,2474.5,2474.4,0.40419]
[1728318975241,0.4042,2474.4,2474.3,0.4042]
[1728318975736,3.2078,2474.5,2474.4,0.40419]
[1728318976036,3.2078,2474.5,2474.0,4.17064]
[1728318976037,0.4042,2474.4,2474.3,0.4042]
[1728318978235,3.61199,2474.5,2474.4,0.40419]
[1728318978436,3.2078,2474.5,2474.4,0.40419]
[1728318978633,3.61198,2474.5,2474.4,0.40419]
[1728318978840,3.2078,2474.5,2474.4,0.40419]
[1728318979546,3.61198,2474.5,2474.4,0.40419]
[1728318980435,3.2078,2474.5,2474.2,3.16]
[1728318980729,3.2078,2474.5,2474.1,1.01061]
[1728318980730,0.40421,2474.4,2474.3,0.4042]
[1728318982342,3.2078,2474.5,2474.4,0.40419]
[1728318983035,0.4042,2474.4,2474.3,0.4042]
[1728318983236,3.2078,2474.5,2474.4,0.40419]
[1728318983440,1.01028,2475.0,2474.4,3.56419]
[1728318983650,0.40414,2474.8,2474.7,0.40413]
[1728318984240,4.218,2475.2,2474.6,3.56415]
[1728318984241,0.40415,2474.7,2474.6,3.56415]
[1728318984438,0.40414,2474.8,2474.7,0.40413]
[1728318985542,1.01025,2475.0,2474.6,3.16]
[1728318985744,0.40413,2474.9,2474.8,0.40412]
[1728318985940,0.40414,2474.8,2474.7,0.40413]
[1728318986138,0.40411,2475.0,2474.9,0.4041]
[1728318986341,4.218,2475.2,2475.0,0.40408]
[1728318986342,0.40409,2475.1,2475.0,0.40408]
[1728318986550,3.61188,2475.2,2475.1,0.40408]
[1728318986737,0.4041,2475.1,2475.0,0.40409]
[1728318987138,1.01015,2475.3,2474.9,1.937]
[1728318987448,0.40409,2475.1,2475.0,0.40409]
[1728318988349,0.40407,2475.2,2475.1,0.40407]
[1728318988549,1.01015,2475.3,2474.9,1.937]
[1728318988740,3.16,2475.5,2474.9,1.937]
[1728318988940,0.4041,2475.0,2474.9,2.34111]
[1728318989135,0.40408,2475.1,2475.0,0.40408]
[1728318989443,4.21793,2475.3,2474.9,2.34111]
[1728318989444,0.4041,2475.0,2474.9,2.34111]
[1728318990141,3.2078,2475.3,2474.9,1.937]
[1728318990343,4.21793,2475.3,2474.9,1.937]
[1728318990646,0.40407,2475.2,2475.1,0.40407]
[1728318991442,0.40409,2475.1,2475.0,0.40409]
[1728318991941,3.2078,2475.3,2475.0,4.04]
[1728318992139,0.40408,2475.1,2475.0,0.40408]
[1728318992543,0.40408,2475.1,2475.0,4.44408]
[1728318992739,3.2078,2475.3,2475.0,4.04]
[1728318992950,3.61185,2475.3,2475.2,0.40406]
[1728318994037,3.2078,2475.3,2475.2,0.40406]
[1728318994242,3.61185,2475.3,2475.2,0.40406]
[1728318995750,0.40405,2475.3,2475.2,0.40406]
[1728318996743,1.01005,2475.5,2475.0,3.16]
[1728318996943,0.40407,2475.2,2475.1,0.40407]
[1728318997552,4.21785,2475.5,2475.0,3.16]
[1728318997850,0.40405,2475.3,2475.2,0.40405]
[1728318999350,0.40408,2475.2,2475.1,0.40407]
[1728318999849,1.01016,2475.3,2474.9,1.937]
[1728319000151,0.4041,2475.0,2474.9,2.3411]
[1728319000550,0.4041,2475.1,2475.0,0.40409]
[1728319003047,0.4041,2475.1,2474.9,1.937]
[1728319003352,0.4041,2475.0,2474.9,2.3411]
[1728319003849,0.4041,2475.0,2474.9,1.937]
[1728319007846,0.4041,2475.0,2474.9,2.34111]
[1728319008054,0.4041,2475.0,2474.9,1.937]
[1728319008756,0.4041,2475.0,2474.9,2.34111]
[1728319010655,0.40409,2475.1,2475.0,0.40409]
[1728319012860,0.40408,2475.2,2475.1,0.40407]
[1728319013348,0.40408,2475.1,2475.0,3.56409]
[1728319013747,0.40408,2475.1,2475.0,7.60409]
[1728319014460,0.40408,2475.1,2475.0,3.56409]
[1728319014856,0.40408,2475.1,2475.0,3.16]
[1728319015059,0.4041,2475.0,2474.9,1.66621]
[1728319016155,1.01021,2475.1,2474.8,3.16]
[1728319016354,0.40414,2474.9,2474.8,0.40412]
[1728319016852,0.40414,2474.9,2474.8,3.56412]
[1728319021158,1.69475,2475.3,2474.8,3.16]
[1728319021364,0.4041,2475.1,2475.0,0.40408]
[1728319021664,1.43278773,2475.4,2475.0,4.17025]
[1728319021665,0.6616,2475.4,2475.0,4.17025]
[1728319021868,0.40403,2475.4,2475.3,0.40405]
[1728319022162,3.2078,2475.5,2475.4,0.40403]
[1728319022163,3.61183,2475.5,2475.4,0.40403]
[1728319023166,0.40401,2475.6,2475.5,0.40399]
[1728319023354,0.40401,2475.5,2475.4,3.56401]
[1728319024362,0.40406,2475.3,2475.2,3.56406]
[1728319024861,1.01007,2475.5,2475.4,0.40401]
[1728319024862,0.40402,2475.5,2475.4,0.40401]
[1728319025063,0.40402,2475.5,2475.4,3.56401]
[1728319025273,0.40401,2475.6,2475.5,0.404]
[1728319026466,1.00996,2475.7,2475.4,3.16]
[1728319026768,0.40406,2475.3,2475.2,3.56404]
[1728319027571,0.40404,2475.4,2475.3,0.40403]
[1728319029669,0.40403,2475.5,2475.4,0.40401]
[1728319030062,3.2078,2475.7,2475.6,0.404]
[1728319030269,0.40396,2475.9,2475.8,0.40397]
[1728319030463,0.40398,2475.8,2475.6,3.16]
[1728319030671,0.40398,2475.8,2475.7,0.40397]
[1728319031059,4.21767,2476.0,2475.6,3.16]
[1728319031269,0.40398,2475.7,2475.6,3.56398]
[1728319031778,0.40398,2475.8,2475.7,0.40397]
[1728319032975,3.61174,2476.0,2475.9,0.40395]
[1728319033373,3.61174,2476.0,2475.9,3.56395]
[1728319034375,3.61174,2476.0,2475.9,3.16]
[1728319034777,3.61174,2476.0,2475.9,3.56395]
[1728319034972,3.61174,2476.0,2475.7,1.3755]
[1728319035165,3.61174,2476.0,2475.7,1.11578]
[1728319035166,0.40397,2475.8,2475.7,1.11578]
[1728319035365,0.40397,2475.9,2475.8,0.40396]
[1728319035577,0.40397,2475.8,2475.7,4.27578]
[1728319036678,0.40397,2475.8,2475.7,3.8718]
[1728319036877,4.21767,2476.0,2475.6,0.40399]
[1728319037078,3.2078,2476.0,2475.5,0.40401]
[1728319037374,0.404,2475.6,2475.5,0.40401]
[1728319037568,0.40399,2475.7,2475.6,0.40398]
[1728319038381,0.404,2475.6,2475.5,3.16]
[1728319038574,0.404,2475.6,2475.5,3.56401]
[1728319041079,1.414,2475.6,2475.4,3.16]
[1728319041281,0.40401,2475.5,2475.4,3.56401]
[1728319041784,0.40401,2475.6,2475.5,0.404]
[1728319043478,0.40401,2475.5,2475.4,3.16]
[1728319043677,1.08321,2475.6,2475.3,0.40404]
[1728319043884,0.40403,2475.4,2475.3,0.40404]
[1728319044085,0.40405,2475.3,2475.2,3.56406]
[1728319044576,0.40405,2475.3,2475.2,3.16]
[1728319045082,0.40405,2475.3,2475.2,3.56406]
[1728319048284,0.40405,2475.3,2475.2,3.16]
[1728319048483,0.40405,2475.3,2475.2,3.56406]
[1728319049188,0.7710185,2475.5,2475.0,6.3678]
[1728319049384,0.6792,2475.6,2475.0,0.4041]
[1728319049385,0.40408,2475.1,2475.0,0.4041]
[1728319049783,5.00678,2475.2,2475.1,0.40408]
[1728319050089,5.00678,2475.2,2475.0,3.56408]
[1728319050090,0.40408,2475.1,2475.0,3.56408]
[1728319052992,1.10848,2475.2,2475.1,0.40408]
[1728319055902,0.7044,2475.2,2475.1,0.40408]
[1728319056100,0.7044,2475.2,2475.0,3.16]
[1728319056101,0.40407,2475.3,2475.2,0.40405]
[1728319056298,0.40407,2475.3,2475.2,3.56405]
[1728319056597,0.40407,2475.3,2475.2,1.86405]
[1728319057000,4.5857,2475.5,2475.4,0.40403]
[1728319057001,3.61183,2475.5,2475.4,0.40403]
[1728319057202,3.61183,2475.5,2475.4,1.86403]
[1728319057700,0.40403,2475.5,2475.4,1.86403]
[1728319058498,0.40403,2475.5,2475.4,3.55403]
[1728319058698,0.40403,2475.5,2475.4,4.25623]
[1728319059098,0.40401,2475.6,2475.5,0.404]
[1728319059609,1.3879,2475.8,2475.4,3.8522]
[1728319059794,0.404,2475.7,2475.6,3.55399]
[1728319061002,1.3879,2475.8,2475.6,3.15]
[1728319061199,0.40398,2475.7,2475.6,3.55398]
[1728319063900,1.3879,2475.8,2475.6,3.55398]
[1728319063901,1.06487,2475.8,2475.7,0.40398]
[1728319064201,0.40396,2475.9,2475.7,0.40398]
[1728319064404,0.40394,2476.0,2475.9,0.40393]
[1728319064801,1.83103,2476.1,2476.0,0.40393]
[1728319065108,1.83103,2476.1,2475.8,3.15]
[1728319065109,0.40393,2476.0,2475.9,1.07703]
[1728319065505,1.83103,2476.1,2476.0,0.40393]
[1728319066005,1.83103,2476.1,2476.0,3.15]
[1728319066006,1.4271,2476.1,2476.0,3.15]
[1728319066206,1.83102,2476.1,2476.0,3.55393]
[1728319070113,1.4271,2476.1,2476.0,3.55393]
[1728319070301,1.83102,2476.1,2476.0,3.55393]
[1728319070504,0.40389,2476.3,2476.2,0.40389]
[1728319071013,0.40391,2476.2,2476.1,0.4039]
[1728319072299,0.40392,2476.1,2476.0,3.55393]
[1728319072604,0.40386,2476.5,2476.4,0.40387]
[1728319072908,0.40385,2476.6,2476.5,0.40384]
[1728319073205,0.40385,2476.6,2476.4,3.15]
[1728319073206,1.09273,2476.7,2476.6,0.40383]
[1728319073422,0.40384,2476.6,2476.5,0.40384]
[1728319074004,0.40385,2476.5,2476.4,4.25276]
[1728319074206,0.40385,2476.5,2476.4,0.6989]
[1728319074402,0.40387,2476.4,2476.3,3.55388]
[1728319075406,3.2078,2476.8,2476.3,3.55388]
[1728319075613,0.40386,2476.5,2476.4,0.40386]
[1728319075817,0.40387,2476.4,2476.3,3.55388]
[1728319076004,6.35197,2476.7,2476.3,3.15]
[1728319076211,6.35197,2476.7,2476.2,0.6989]
[1728319076212,0.40388,2476.4,2476.2,1.10279]
[1728319076515,0.40386,2476.5,2476.4,0.40386]
[1728319076712,0.40384,2476.6,2476.5,0.40385]
[1728319077111,6.35197,2476.7,2476.3,3.15]
[1728319077311,0.40385,2476.5,2476.4,0.40386]
[1728319078519,0.40384,2476.6,2476.5,0.40384]
[1728319078713,0.40384,2476.6,2476.4,1.45]
[1728319078916,5.3424,2476.7,2476.4,1.85385]
[1728319079115,0.40383,2476.6,2476.4,1.85385]
[1728319079321,0.40383,2476.6,2476.4,1.45]
[1728319079821,0.40385,2476.5,2476.4,1.85386]
[1728319080519,0.40386,2476.5,2476.3,3.55387]
[1728319080719,0.40386,2476.5,2476.3,3.15]
[1728319080925,0.40386,2476.5,2476.4,0.40387]
[1728319081310,0.40385,2476.6,2476.4,0.40385]
[1728319081715,0.40385,2476.5,2476.4,0.40385]
[1728319082620,0.40385,2476.6,2476.4,0.40385]
[1728319082821,0.40385,2476.6,2476.3,3.15]
[1728319083023,0.40385,2476.6,2476.5,0.40385]
[1728319083527,0.40384,2476.6,2476.5,0.40385]
[1728319083716,0.40383,2476.6,2476.5,0.40385]
[1728319084021,5.74623,2476.7,2476.5,0.40384]
[1728319084422,5.74623,2476.7,2476.3,4.15915]
[1728319084622,5.74623,2476.7,2476.5,0.40384]
[1728319085012,5.74623,2476.7,2476.4,0.40387]
[1728319085219,5.74623,2476.7,2476.5,0.40384]
[1728319085420,5.74623,2476.7,2476.3,3.14944]
[1728319085730,5.74623,2476.7,2476.5,0.40384]
[1728319086123,5.3424,2476.7,2476.5,0.40384]
[1728319086322,0.40383,2476.6,2476.5,0.40384]
[1728319087025,5.3424,2476.7,2476.3,3.14944]
[1728319087226,5.3424,2476.7,2476.5,0.40384]
[1728319087426,5.3424,2476.7,2476.3,4.15916]
[1728319087625,0.40384,2476.6,2476.5,0.40385]
[1728319088626,5.74622,2476.7,2476.6,0.40383]
[1728319089626,0.40384,2476.6,2476.5,0.40384]
[1728319090016,1.4143,2476.7,2476.3,4.15916]
[1728319090226,1.4143,2476.7,2476.6,0.40383]
[1728319090421,0.094,2477.1,2476.6,1.00959]
[1728319090731,1.12446,2477.1,2477.0,0.40377]
[1728319090923,5.16126,2477.1,2477.0,0.40377]
[1728319091330,0.7207,2477.1,2477.0,0.40377]
[1728319091730,0.7207,2477.1,2476.9,3.15]
[1728319091928,0.40377,2477.0,2476.9,3.55378]
[1728319092429,1.12446,2477.1,2477.0,0.40377]
[1728319092628,0.40371,2477.4,2477.0,0.40377]
[1728319092826,3.2078,2477.6,2477.4,0.4037]
[1728319092827,5.01109,2477.6,2477.4,0.4037]
[1728319093135,5.01109,2477.6,2477.5,0.40369]
[1728319093525,3.2078,2477.6,2477.5,3.55369]
[1728319093831,1.00905,2478.0,2477.5,3.55369]
[1728319093832,2.40475,2478.0,2477.5,3.15]
[1728319094019,0.40366,2477.7,2477.6,0.40367]
[1728319094224,0.40363,2477.9,2477.8,0.40363]
[1728319094531,1.79931,2478.0,2477.9,0.40362]
[1728319094723,1.79931,2478.0,2477.8,0.40363]
[1728319095430,0.40364,2477.8,2477.7,3.55365]
[1728319095733,0.6716,2478.0,2477.9,0.40362]
[1728319096032,3.2078,2478.1,2478.0,0.40361]
[1728319096224,3.2078,2478.1,2478.0,1.10691]
[1728319096429,3.9319,2478.4,2478.0,5.415]
[1728319096734,3.9319,2478.4,2478.0,1.3798]
[1728319097035,0.40359,2478.1,2478.0,1.3798]
[1728319097225,0.40359,2478.1,2478.0,1.10691]
[1728319097538,0.40362,2477.9,2477.8,3.15]
[1728319098336,0.40366,2477.7,2477.6,3.55367]
[1728319098634,0.6935,2477.8,2477.4,3.15]
[1728319098932,0.40369,2477.5,2477.4,3.5537]
[1728319099230,0.40369,2477.5,2477.4,3.15]
[1728319099631,0.40369,2477.5,2477.4,3.5537]
[1728319099830,0.40369,2477.5,2477.4,3.15]
[1728319100128,0.7263,2477.6,2477.4,3.15]
[1728319100330,1.12998,2477.6,2477.4,3.5537]
[1728319100632,0.40369,2477.5,2477.3,0.40371]
[1728319100833,0.4037,2477.4,2477.3,0.40371]
[1728319101040,0.7263,2477.6,2477.2,3.15]
[1728319101225,0.40375,2477.1,2477.0,0.695]
[1728319101534,0.40374,2477.2,2477.1,0.40375]
[1728319101828,3.2078,2477.5,2477.0,3.15]
[1728319102032,0.40374,2477.2,2477.1,0.40375]
[1728319102424,0.40373,2477.3,2477.1,0.40374]
[1728319102822,4.21704,2477.5,2477.1,0.40374]
[1728319103021,0.40374,2477.2,2477.1,0.40374]
[1728319103233,0.40373,2477.3,2477.1,0.40374]
[1728319103537,0.40373,2477.3,2477.0,3.15]
[1728319103732,3.2078,2477.5,2477.2,3.15]
[1728319104030,3.2078,2477.5,2477.4,3.5537]
[1728319104729,0.7263,2477.6,2477.4,3.15]
[1728319104934,0.7263,2477.6,2477.5,3.55369]
[1728319106037,1.00926,2477.5,2477.1,0.40375]
[1728319106237,1.00926,2477.5,2476.9,0.7106]
[1728319106238,1.00927,2477.4,2476.9,0.7106]
[1728319106539,3.2078,2477.0,2476.5,0.49784]
[1728319106731,1.3845,2476.9,2476.4,6.3578]
[1728319106929,1.3845,2476.9,2476.2,1.3725]
[1728319106930,1.3845,2476.9,2476.7,3.15]
[1728319107128,0.4038,2476.8,2476.7,3.15]
[1728319107835,0.4038,2476.8,2476.7,3.55382]
[1728319108230,0.4038,2476.8,2476.7,3.15]
[1728319108633,1.3845,2476.9,2476.7,3.15]
[1728319108634,1.78829,2476.9,2476.7,3.15]
[1728319108835,1.78829,2476.9,2476.4,3.2078]
[1728319108836,0.6597,2476.9,2476.8,3.5538]
[1728319109638,4.5417,2477.3,2476.8,3.5538]
[1728319109639,0.40376,2477.1,2477.0,0.40377]
[1728319109839,0.40374,2477.2,2477.0,3.15]
[1728319110034,0.40375,2477.1,2477.0,3.15]
[1728319110431,5.59372,2477.3,2476.8,3.55379]
[1728319110637,0.40379,2476.9,2476.8,3.55379]
[1728319111035,0.40379,2476.9,2476.8,7.59139]
[1728319112631,0.40379,2477.0,2476.9,0.40378]
[1728319112833,1.00939,2477.1,2476.8,3.55379]
[1728319112834,0.40379,2476.9,2476.8,3.55379]
[1728319113340,0.40379,2476.9,2476.8,7.59139]
[1728319113740,0.40379,2476.9,2476.8,7.1876]
[1728319115042,0.40379,2476.9,2476.8,7.5914]
[1728319115339,0.40379,2476.9,2476.8,3.5538]
[1728319115542,0.40379,2476.9,2476.8,3.15]
[1728319115739,0.40379,2476.9,2476.8,7.1876]
[1728319116045,0.40379,2476.9,2476.8,8.3094]
[1728319117431,0.40379,2476.9,2476.8,4.2718]
[1728319119938,0.40379,2476.9,2476.8,3.868]
[1728319120336,0.40379,2476.9,2476.8,0.718]
[1728319120641,1.00939,2477.1,2476.7,3.2078]
[1728319120838,1.0721,2476.8,2476.7,3.61161]
[1728319122733,0.6683,2476.8,2476.7,3.61161]
[1728319122933,1.0721,2476.8,2476.7,3.61161]
[1728319124452,0.6683,2476.8,2476.7,3.61161]
[1728319124750,0.4038,2476.8,2476.7,7.64921]
[1728319125150,1.00947,2477.0,2476.7,7.2454]
[1728319125338,0.4038,2476.9,2476.8,0.40379]
[1728319125541,0.4038,2476.8,2476.7,3.61161]
[1728319126752,0.4038,2476.8,2476.7,4.28501]
[1728319127245,0.40377,2477.0,2476.9,0.40378]
[1728319127453,0.6738,2477.1,2476.7,3.8812]
[1728319127654,0.40379,2477.0,2476.9,0.40377]
[1728319129950,0.40379,2477.0,2476.8,0.685]
[1728319130153,0.40378,2477.0,2476.9,0.40377]
[1728319133448,1.6832,2477.1,2477.0,0.40377]
[1728319133449,1.07758,2477.1,2477.0,0.40377]
[1728319133659,0.40378,2477.0,2476.9,0.40377]
[1728319137250,0.4038,2476.8,2476.7,1.07722]
[1728319137450,0.40385,2476.6,2476.5,0.40383]
[1728319138254,1.13003,2476.6,2476.5,0.40383]
[1728319139957,1.13003,2476.6,2476.5,3.55383]
[1728319140153,3.2078,2477.4,2476.5,3.15]
[1728319140465,3.2078,2477.4,2476.4,4.5394]
[1728319140466,0.40379,2477.0,2476.9,0.40377]
[1728319140755,0.40379,2477.0,2476.9,1.07837]
[1728319141358,1.08247,2477.1,2477.0,0.40377]
[1728319142863,0.6787,2477.1,2476.9,0.6746]
[1728319143164,0.6787,2477.1,2476.8,3.15]
[1728319143165,0.40379,2476.9,2476.8,3.15]
[1728319143363,1.70703,2477.0,2476.6,0.40383]
[1728319143559,0.40383,2476.6,2476.5,1.05173]
[1728319144064,0.40383,2476.7,2476.6,0.40382]
[1728319144267,0.40383,2476.7,2476.4,0.40385]
[1728319144268,0.40386,2476.5,2476.4,0.40385]
[1728319144766,0.6744,2476.6,2476.4,0.40385]
[1728319145062,4.87616,2476.7,2476.4,0.40385]
[1728319145063,0.40385,2476.5,2476.4,0.40385]
[1728319145265,0.40384,2476.6,2476.5,0.40383]
[1728319146366,1.4055,2476.7,2476.3,3.8053]
[1728319146658,0.40387,2476.4,2476.3,0.40387]
[1728319148960,1.00959,2476.6,2476.2,0.6479]
[1728319148961,0.40388,2476.3,2476.2,1.05179]
[1728319149267,1.08738,2476.3,2476.2,1.05179]
[1728319149461,1.08738,2476.3,2476.2,0.40389]
[1728319149663,0.40392,2476.2,2476.1,0.40391]
[1728319150168,0.6835,2476.3,2476.0,3.15]
[1728319150367,0.40393,2476.0,2475.9,1.78704]
[1728319150568,0.7091,2476.2,2475.9,1.3831]
[1728319150864,1.11301,2476.2,2476.1,0.40392]
[1728319152366,0.40392,2476.1,2476.0,3.15]
[1728319152563,0.40392,2476.1,2476.0,3.55392]
[1728319152871,0.6835,2476.3,2476.0,3.15]
[1728319153064,0.40392,2476.1,2476.0,3.55393]
[1728319153370,0.40391,2476.2,2476.1,0.40391]
[1728319154066,1.69323,2476.3,2476.0,3.15]
[1728319154270,0.6808,2476.4,2476.3,0.40388]
[1728319154465,1.08467,2476.4,2476.3,0.40388]
[1728319155572,0.6808,2476.4,2476.2,40.8]
[1728319155762,0.40388,2476.3,2476.2,41.20389]
[1728319156272,0.40388,2476.3,2476.2,0.40389]
[1728319156865,0.6808,2476.4,2476.1,44.6525]
[1728319157075,1.08467,2476.4,2476.3,0.40388]
[1728319157371,0.40387,2476.4,2476.3,0.40388]
[1728319157558,0.40389,2476.3,2476.2,0.40389]
[1728319157764,0.4039,2476.3,2476.2,0.4039]
[1728319158266,0.4039,2476.3,2476.1,44.6525]
[1728319158267,0.40388,2476.4,2476.3,0.40388]
[1728319158769,0.40389,2476.3,2476.1,44.6525]
[1728319158968,0.40389,2476.3,2476.2,0.40389]
[1728319161568,0.4039,2476.2,2476.1,44.35391]
[1728319162281,0.4039,2476.2,2476.1,3.55391]
[1728319164584,0.4039,2476.2,2476.1,0.40391]
[1728319165471,1.00971,2476.4,2476.0,0.40392]
[1728319165472,0.40392,2476.1,2476.0,0.40392]
[1728319165682,0.40393,2476.0,2475.9,4.99484]
[1728319166382,0.40393,2476.0,2475.9,6.44484]
[1728319168080,0.667,2476.1,2475.9,6.0409]
[1728319168384,1.07093,2476.1,2476.0,0.40393]
[1728319169379,0.40393,2476.0,2475.9,5.06175]
[1728319170277,0.40393,2476.0,2475.9,3.2078]
[1728319170676,0.40393,2476.0,2475.9,3.61175]
[1728319170877,0.40395,2475.9,2475.8,0.40396]
[1728319171579,0.40395,2475.9,2475.7,1.45]
[1728319171580,3.1268,2476.1,2475.7,1.45]
[1728319171786,3.1268,2476.1,2475.5,0.404]
[1728319171787,0.40401,2475.6,2475.5,0.404]
[1728319172670,2.43029,2475.7,2475.6,0.404]
[1728319173277,2.0263,2475.7,2475.6,0.404]
[1728319173973,3.61172,2476.1,2476.0,0.40393]
[1728319174175,0.40392,2476.1,2476.0,0.40393]
[1728319175777,0.6582,2476.2,2475.8,4.15992]
[1728319175981,0.6564,2476.4,2476.0,3.15]
[1728319176186,0.40391,2476.2,2476.1,0.4039]
[1728319177787,0.6467,2476.3,2475.8,3.15]
[1728319177983,0.40393,2476.1,2476.0,0.40392]
[1728319178778,1.00976,2476.2,2475.9,0.40394]
[1728319178779,0.40395,2476.0,2475.9,0.40394]
[1728319182580,0.40394,2476.1,2476.0,0.40392]
[1728319194795,0.40394,2476.1,2475.7,3.07745]
[1728319194997,0.40396,2476.0,2475.7,1.3977]
[1728319195185,0.40397,2475.9,2475.8,0.40395]
[1728319195390,1.06837,2475.9,2475.8,0.40395]
[1728319195597,1.06837,2475.9,2475.8,4.44315]
[1728319200795,0.40397,2475.9,2475.8,4.44315]
[1728319201101,1.41363,2476.3,2476.2,0.40389]
[1728319201403,0.40391,2476.3,2476.2,0.40389]
[1728319202289,0.4039,2476.2,2476.1,1.05711]
[1728319202598,0.4039,2476.2,2475.9,0.40393]
[1728319202599,0.40394,2476.0,2475.9,0.40393]
[1728319203702,0.40395,2475.9,2475.8,1.71866]
[1728319203895,1.04995,2475.9,2475.8,1.71866]
[1728319204503,0.40394,2476.0,2475.9,0.40395]
[1728319205802,1.04993,2476.1,2476.0,0.40393]
[1728319206203,0.40395,2476.0,2475.8,1.3147]
[1728319206402,1.00992,2475.8,2475.3,47.07938952]
[1728319206602,1.00992,2475.8,2475.4,1.74831]
[1728319206603,0.40403,2475.5,2475.4,1.74831]
[1728319206794,0.40403,2475.5,2475.3,3.2078]
[1728319206992,1.86403,2475.4,2475.3,3.2078]
[1728319207197,1.86403,2475.4,2475.3,2.8034]
[1728319207595,1.86403,2475.4,2475.3,3.20745]
[1728319208500,0.40403,2475.4,2475.3,3.20745]
[1728319209094,0.40403,2475.5,2475.4,0.40401]
[1728319209796,0.40403,2475.4,2475.3,3.20743]
[1728319210402,0.78269311,2475.6,2475.3,2.8034]
[1728319210601,0.78269311,2475.6,2475.5,0.40401]
[1728319210602,0.40401,2475.6,2475.5,0.40401]
[1728319210807,0.40401,2475.6,2475.3,2.8034]
[1728319211003,0.40403,2475.5,2475.4,0.40401]
[1728319211200,0.40403,2475.5,2475.0,46.70091]
[1728319211201,3.2078,2475.5,2475.0,40.8]